fUST/lending_fUST_20240302
["ID","MTS","AMOUNT","RATE_DAILY","PERIOD"]
[315981340,1709313051459,-1087.52,0.00020998,2]
[315981342,1709313051470,-500.0,0.00020998,2]
[315981344,1709313051481,-1087.52,0.00020998,2]
[315981346,1709313051490,-593.06453736,0.00020998,2]
[315981348,1709313051499,-1087.52,0.00020998,2]
[315981350,1709313051510,-500.0,0.00020998,2]
[315981352,1709313051520,-500.0,0.00020998,2]
[315981354,1709313051530,-500.0,0.00020998,2]
[315981355,1709313051541,-500.0,0.00020998,2]
[315981357,1709313051550,-500.0,0.00020998,2]
[315981359,1709313051560,-500.0,0.00020998,2]
[315981361,1709313051569,-590.56327125,0.00020998,2]
[315981363,1709313051581,-506.52508792,0.00020998,2]
[315981365,1709313051590,-500.0,0.00020998,2]
[315981367,1709313051599,-500.0,0.00020998,2]
[315981369,1709313051608,-500.0,0.00020998,2]
[315981371,1709313051617,-500.0,0.00020998,2]
[315981373,1709313051626,-500.0,0.00020998,2]
[315981375,1709313051637,-500.0,0.00020998,2]
[315981377,1709313051647,-500.0,0.00020998,2]
[315981378,1709313051656,-500.0,0.00020998,2]
[315981380,1709313051665,-500.0,0.00020998,2]
[315981382,1709313051674,-500.0,0.00020998,2]
[315981384,1709313051683,-500.0,0.00020998,2]
[315981385,1709313051692,-500.0,0.00020998,2]
[315981387,1709313051701,-594.25971476,0.00020998,2]
[315981389,1709313051709,-630.7,0.00020998,2]
[315981391,1709313051719,-630.7,0.00020998,2]
[315981393,1709313051729,-630.7,0.00020998,2]
[315981395,1709313051738,-630.7,0.00020998,2]
[315981397,1709313051747,-630.7,0.00020998,2]
[315981399,1709313051757,-630.7,0.00020998,2]
[315981401,1709313051766,-630.7,0.00020998,2]
[315981403,1709313051776,-630.7,0.00020998,2]
[315981404,1709313051786,-630.71,0.00020998,2]
[315981406,1709313051795,-812.57,0.00020998,2]
[315981408,1709313051804,-812.57,0.00020998,2]
[315981410,1709313051813,-812.57,0.00020998,2]
[315981412,1709313051823,-812.57,0.00020998,2]
[315981414,1709313051834,-812.57,0.00020998,2]
[315981416,1709313051844,-500.0,0.00020998,2]
[315981418,1709313051853,-400.0,0.00020998,2]
[315981420,1709313051861,-287.12299865,0.00020998,2]
[315981422,1709313051870,-1445.83,0.00020998,2]
[315981423,1709313051879,-1445.83,0.00020998,2]
[315981425,1709313051889,-1445.83,0.00020998,2]
[315981427,1709313051898,-1445.83,0.00020998,2]
[315981429,1709313051907,-1445.83,0.00020998,2]
[315981431,1709313051916,-4230.34,0.00020998,2]
[315981433,1709313051925,-4230.34,0.00020998,2]
[315981434,1709313051935,-4230.34,0.00020998,2]
[315981435,1709313051944,-4230.34,0.00020998,2]
[315981436,1709313051953,-4230.34,0.00020998,2]
[315981437,1709313051964,-1785.99,0.00020998,2]
[315981438,1709313051974,-1785.99,0.00020998,2]
[315981439,1709313051983,-1785.99,0.00020998,2]
[315981440,1709313051993,-1785.99,0.00020998,2]
[315981441,1709313052002,-1785.99,0.00020998,2]
[315981442,1709313052011,-500.0,0.00020999,2]
[315981443,1709313052021,-500.0,0.00020999,2]
[315981444,1709313052030,-500.0,0.00020999,2]
[315981445,1709313052040,-500.0,0.00020999,2]
[315981446,1709313052049,-500.0,0.00020999,2]
[315981447,1709313052059,-500.0,0.00020999,2]
[315981448,1709313052069,-500.0,0.00020999,2]
[315981449,1709313052080,-500.0,0.00020999,2]
[315981450,1709313052089,-500.0,0.00020999,2]
[315981451,1709313052099,-647.0,0.00020999,2]
[315981452,1709313052107,-500.0,0.00020999,2]
[315981453,1709313052117,-500.0,0.00020999,2]
[315981454,1709313052126,-500.0,0.00020999,2]
[315981455,1709313052135,-608.37293923,0.00020999,2]
[315981456,1709313052144,-618.67,0.00020999,2]
[315981457,1709313052154,-618.67,0.00020999,2]
[315981458,1709313052163,-618.67,0.00020999,2]
[315981459,1709313052172,-618.67,0.00020999,2]
[315981460,1709313052181,-618.67,0.00020999,2]
[315981461,1709313052190,-618.67,0.00020999,2]
[315981462,1709313052199,-618.67,0.00020999,2]
[315981463,1709313052209,-618.67,0.00020999,2]
[315981465,1709313052218,-618.67,0.00020999,2]
[315981466,1709313052228,-618.81035613,0.00020999,2]
[315981468,1709313052240,-500.0,0.00020999,2]
[315981470,1709313052249,-500.0,0.00020999,2]
[315981472,1709313052258,-334.21930038,0.00020999,2]
[315981474,1709313052268,-543.64,0.00020999,2]
[315981476,1709313052277,-543.64,0.00020999,2]
[315981478,1709313052286,-543.64,0.00020999,2]
[315981480,1709313052295,-543.64,0.00020999,2]
[315981481,1709313052305,-543.86542059,0.00020999,2]
[315981483,1709313052314,-5426.78,0.00020999,2]
[315981485,1709313052323,-5426.78,0.00020999,2]
[315981495,1709313052407,-5426.78,0.00020999,2]
[315981497,1709313052416,-5426.78,0.00020999,2]
[315981499,1709313052426,-5426.78,0.00020999,2]
[315981501,1709313052436,-5426.78,0.00020999,2]
[315981503,1709313052446,-5426.78,0.00020999,2]
[315981505,1709313052457,-5426.78,0.00020999,2]
[315981507,1709313052466,-5426.78,0.00020999,2]
[315981509,1709313052475,-5426.78,0.00020999,2]
[315981510,1709313052484,-5426.78,0.00020999,2]
[315981511,1709313052494,-5426.78,0.00020999,2]
[315981512,1709313052503,-5426.78,0.00020999,2]
[315981513,1709313052513,-5426.78,0.00020999,2]
[315981514,1709313052524,-5426.78,0.00020999,2]
[315981515,1709313052533,-5426.78,0.00020999,2]
[315981516,1709313052542,-5426.78,0.00020999,2]
[315981517,1709313052551,-5426.78,0.00020999,2]
[315981518,1709313052560,-5426.78,0.00020999,2]
[315981519,1709313052569,-5426.78,0.00020999,2]
[315981520,1709313052578,-5426.78,0.00020999,2]
[315981521,1709313052587,-5426.86526031,0.00020999,2]
[315981522,1709313052596,-748.99,0.00020999,2]
[315981523,1709313052605,-748.99,0.00020999,2]
[315981524,1709313052614,-748.99,0.00020999,2]
[315981525,1709313052622,-748.99,0.00020999,2]
[315981526,1709313052631,-749.11658532,0.00020999,2]
[315981527,1709313052640,-1307.07,0.00020999,2]
[315981528,1709313052649,-1307.07,0.00020999,2]
[315981529,1709313052657,-1307.07,0.00020999,2]
[315981530,1709313052666,-1307.07,0.00020999,2]
[315981531,1709313052675,-1307.07,0.00020999,2]
[315981532,1709313052684,-1307.07,0.00020999,2]
[315981533,1709313052693,-1307.07,0.00020999,2]
[315981534,1709313052702,-1307.07,0.00020999,2]
[315981535,1709313052710,-2388.58,0.00020999,2]
[315981536,1709313052719,-1307.07,0.00020999,2]
[315981537,1709313052728,-2388.58,0.00020999,2]
[315981538,1709313052736,-1307.07,0.00020999,2]
[315981539,1709313052745,-2388.58,0.00020999,2]
[315981540,1709313052754,-1307.07,0.00020999,2]
[315981541,1709313052763,-2388.58,0.00020999,2]
[315981543,1709313052772,-1307.07,0.00020999,2]
[315981545,1709313052781,-1307.07,0.00020999,2]
[315981547,1709313052789,-2388.68663768,0.00020999,2]
[315981549,1709313052799,-1307.28007868,0.00020999,2]
[315981551,1709313052808,-1496.73,0.00020999,2]
[315981553,1709313052817,-1496.73,0.00020999,2]
[315981555,1709313052828,-1496.73,0.00020999,2]
[315981557,1709313052837,-1496.73,0.00020999,2]
[315981559,1709313052846,-1496.73,0.00020999,2]
[315981561,1709313052856,-1496.73,0.00020999,2]
[315981563,1709313052865,-1496.73,0.00020999,2]
[315981565,1709313052875,-1496.73,0.00020999,2]
[315981567,1709313052884,-1496.73,0.00020999,2]
[315981569,1709313052894,-1496.73,0.00020999,2]
[315981571,1709313052903,-1496.73,0.00020999,2]
[315981573,1709313052912,-1496.73,0.00020999,2]
[315981575,1709313052921,-1496.73,0.00020999,2]
[315981577,1709313052931,-1496.96070504,0.00020999,2]
[315981579,1709313052939,-1087.52,0.00020999,2]
[315981581,1709313052949,-1087.52,0.00020999,2]
[315981583,1709313052958,-1087.52,0.00020999,2]
[315981585,1709313052967,-1087.52,0.00020999,2]
[315981587,1709313052976,-1087.71087427,0.00020999,2]
[315981589,1709313052986,-500.0,0.00020999,2]
[315981591,1709313052995,-500.0,0.00020999,2]
[315981593,1709313053004,-193.26,0.00020999,2]
[315981595,1709313053013,-812.57,0.00020999,2]
[315981597,1709313053023,-812.57,0.00020999,2]
[315981599,1709313053033,-812.57,0.00020999,2]
[315981601,1709313053042,-812.57,0.00020999,2]
[315981603,1709313053052,-812.70245189,0.00020999,2]
[315981605,1709313053061,-1445.83,0.00020999,2]
[315981607,1709313053071,-1445.83,0.00020999,2]
[315981609,1709313053081,-1445.83,0.00020999,2]
[315981611,1709313053090,-1445.83,0.00020999,2]
[315981613,1709313053100,-1445.86682508,0.00020999,2]
[315981615,1709313053109,-4230.34,0.00020999,2]
[315981617,1709313053119,-4230.34,0.00020999,2]
[315981619,1709313053128,-4230.34,0.00020999,2]
[315981620,1709313053138,-4230.34,0.00020999,2]
[315981622,1709313053147,-4230.39303113,0.00020999,2]
[315981624,1709313053156,-1785.99,0.00020999,2]
[315981626,1709313053165,-1785.99,0.00020999,2]
[315981628,1709313053175,-1785.99,0.00020999,2]
[315981630,1709313053188,-1785.99,0.00020999,2]
[315981632,1709313053197,-1786.13678886,0.00020999,2]
[315981634,1709313053207,-441311.16720281,0.00021,2]
[315981659,1709313053433,-155.02480397,0.00018106,2]
[315981661,1709313053442,-844.97185103,0.00018108,2]
[315981666,1709313053489,-15083.0917252,0.00018108,2]
[315981668,1709313053499,-257.36341085,0.00020547,2]
[315981670,1709313053508,-500.0,0.00020898,2]
[315981672,1709313053518,-500.0,0.00020899,2]
[315981674,1709313053528,-500.0,0.00020899,2]
[315981676,1709313053537,-500.0,0.00020995,2]
[315981678,1709313053547,-500.0,0.00020997,2]
[315981680,1709313053556,-500.0,0.00020997,2]
[315981682,1709313053566,-500.0,0.00020998,2]
[315981684,1709313053575,-500.0,0.00020998,2]
[315981686,1709313053585,-500.0,0.00020998,2]
[315981688,1709313053595,-500.0,0.00020998,2]
[315981690,1709313053604,-500.0,0.00020998,2]
[315981692,1709313053613,-500.0,0.00020998,2]
[315981694,1709313053623,-500.0,0.00020998,2]
[315981696,1709313053632,-442.6,0.00020998,2]
[315981698,1709313053642,-142953.35682972,0.00021,2]
[315981700,1709313053651,-187.5122197,0.00021,2]
[315981702,1709313053661,-2411.44196125,0.00021,2]
[315981709,1709313053717,-1981319.46803875,0.00021,2]
[315981711,1709313053726,-3338.15,0.00021,2]
[315981713,1709313053736,-24555.942739,0.00021,2]
[315981715,1709313053745,-5988.18573983,0.00021,2]
[315981717,1709313053755,-109419.37377835,0.00021,2]
[315981719,1709313053767,-3364.90048083,0.00021,2]
[315981735,1709313053913,-274.45066088,0.00020447,2]
[315981737,1709313053924,-404.57846919,0.00020447,2]
[315981771,1709313068311,1212.37531818,0.0003,120]
[315981775,1709313584323,-300.0,0.00021,9]
[315981845,1709314234315,-309.60917257,0.00017927,2]
[315981847,1709314234325,-155.00310006,0.00017927,2]
[315981849,1709314234334,-176.2238837,0.00017928,2]
[315981851,1709314234343,-15928.06357623,0.00017936,2]
[315981853,1709314234352,-2854.0,0.00017937,2]
[315981855,1709314234363,-5445.53710548,0.00018,2]
[315981857,1709314234377,-155.00310006,0.00018662,2]
[315981860,1709314234386,-738.0186773,0.00018663,2]
[315981863,1709314234396,-513.5158098,0.000189,2]
[315981865,1709314234405,-155.00310006,0.00019177,2]
[315981888,1709314234508,-162.218823,0.00019178,2]
[315981891,1709314234517,-170.397411,0.00019178,2]
[315981894,1709314234527,-166.666666,0.00019178,2]
[315981896,1709314234535,-238.53127687,0.00020188,2]
[315981898,1709314234546,-20840.03860396,0.00020188,2]
[315981900,1709314234556,-156.34113291,0.00020189,2]
[315981902,1709314234565,-5000.0,0.00020189,5]
[315981904,1709314234574,-5000.0,0.00020189,5]
[315981906,1709314234583,-535.26901133,0.00020299,2]
[315981908,1709314234592,-727.10912909,0.00020299,2]
[315981910,1709314234601,-151.88590298,0.00020299,2]
[315981912,1709314234611,-352.54349504,0.00020299,2]
[315981914,1709314234620,-772.0535,0.00020447,2]
[315981916,1709314234632,-1000.0,0.00020507,2]
[315981918,1709314234641,-1930.82,0.00020523,3]
[315981920,1709314234649,-2701.58,0.00020523,3]
[315981922,1709314234659,-2251.31,0.00020523,3]
[315981924,1709314234667,-1000.0,0.00020525,2]
[315981926,1709314234676,-1000.0,0.00020531,2]
[315981928,1709314234686,-2008.62734002,0.00020533,2]
[315981930,1709314234695,-70705.88578638,0.00020533,3]
[315981932,1709314234704,-15232.41076204,0.00020545,2]
[315981934,1709314234713,-155.58142428,0.00020545,2]
[315981936,1709314234722,-182.08716606,0.00020545,2]
[315981938,1709314234731,-155.15204901,0.00020545,2]
[315981940,1709314234740,-284.39220468,0.00020545,2]
[315981942,1709314234750,-276.86398871,0.00020546,2]
[315981944,1709314234759,-242.70063326,0.00020546,2]
[315981946,1709314234768,-188.0986222,0.00020546,2]
[315981948,1709314234777,-280.37029672,0.00020546,2]
[315981950,1709314234787,-567.13965238,0.00020546,2]
[315981951,1709314234796,-154.77224955,0.00020546,2]
[315981953,1709314234805,-500.0,0.00020547,2]
[315981955,1709314234815,-500.0,0.00020547,2]
[315981957,1709314234824,-335.67228445,0.00020547,2]
[315981959,1709314234833,-500.0,0.00020547,2]
[315981961,1709314234842,-640.06006059,0.00020547,2]
[315981963,1709314234851,-500.0,0.00020547,2]
[315981965,1709314234863,-500.0,0.00020547,2]
[315981967,1709314234873,-500.0,0.00020547,2]
[315981969,1709314234882,-500.0,0.00020547,2]
[315981971,1709314234891,-500.0,0.00020547,2]
[315981973,1709314234900,-500.0,0.00020547,2]
[315981974,1709314234909,-500.0,0.00020547,2]
[315981976,1709314234918,-504.70606346,0.00020547,2]
[315981977,1709314234927,-500.0,0.00020547,2]
[315981978,1709314234936,-500.0,0.00020547,2]
[315981980,1709314234946,-501.78357204,0.00020547,2]
[315981982,1709314234955,-500.0,0.00020547,2]
[315981984,1709314234964,-500.0,0.00020547,2]
[315981986,1709314234974,-500.0,0.00020547,2]
[315981988,1709314234983,-500.0,0.00020547,2]
[315981990,1709314234992,-500.0,0.00020547,2]
[315981991,1709314235000,-500.0,0.00020547,2]
[315981993,1709314235010,-501.21870852,0.00020547,2]
[315981995,1709314235018,-500.0,0.00020547,2]
[315981997,1709314235027,-396.22627538,0.00020547,2]
[315981999,1709314235037,-500.0,0.00020547,2]
[315982000,1709314235046,-500.0,0.00020547,2]
[315982002,1709314235055,-500.0,0.00020547,2]
[315982004,1709314235064,-500.0,0.00020547,2]
[315982006,1709314235074,-588.2509264,0.00020547,2]
[315982008,1709314235083,-500.0,0.00020547,2]
[315982009,1709314235093,-382.86228845,0.00020547,2]
[315982010,1709314235102,-500.0,0.00020547,2]
[315982011,1709314235111,-451.7253466,0.00020547,2]
[315982012,1709314235123,-500.0,0.00020547,2]
[315982013,1709314235132,-500.0,0.00020547,2]
[315982014,1709314235141,-500.0,0.00020547,2]
[315982015,1709314235151,-500.0,0.00020547,2]
[315982016,1709314235160,-500.0,0.00020547,2]
[315982017,1709314235170,-603.84180644,0.00020547,2]
[315982018,1709314235179,-500.0,0.00020547,2]
[315982019,1709314235189,-500.0,0.00020547,2]
[315982020,1709314235198,-500.0,0.00020547,2]
[315982021,1709314235207,-500.0,0.00020547,2]
[315982022,1709314235217,-500.0,0.00020547,2]
[315982023,1709314235226,-500.0,0.00020547,2]
[315982024,1709314235237,-500.0,0.00020547,2]
[315982025,1709314235248,-500.0,0.00020547,2]
[315982026,1709314235257,-500.0,0.00020547,2]
[315982027,1709314235267,-500.0,0.00020547,2]
[315982028,1709314235277,-402.03555916,0.00020547,2]
[315982029,1709314235286,-500.0,0.00020547,2]
[315982030,1709314235295,-176.07242424,0.00020547,2]
[315982031,1709314235305,-500.0,0.00020547,2]
[315982032,1709314235314,-331.87495185,0.00020547,2]
[315982033,1709314235323,-500.0,0.00020547,2]
[315982034,1709314235333,-501.75610405,0.00020547,2]
[315982035,1709314235342,-500.0,0.00020547,2]
[315982036,1709314235352,-503.00187017,0.00020547,2]
[315982037,1709314235361,-531.13319968,0.00020547,2]
[315982038,1709314235371,-500.0,0.00020547,2]
[315982039,1709314235381,-344.54402551,0.00020547,2]
[315982040,1709314235390,-500.57589758,0.00020547,2]
[315982041,1709314235400,-168.1003179,0.00020547,2]
[315982042,1709314235409,-500.0,0.00020547,2]
[315982043,1709314235419,-500.0,0.00020547,2]
[315982044,1709314235428,-500.0,0.00020547,2]
[315982045,1709314235437,-500.0,0.00020547,2]
[315982046,1709314235447,-500.0,0.00020547,2]
[315982047,1709314235456,-500.0,0.00020547,2]
[315982048,1709314235465,-500.0,0.00020547,2]
[315982049,1709314235474,-500.0,0.00020547,2]
[315982050,1709314235483,-500.0,0.00020547,2]
[315982051,1709314235493,-500.0,0.00020547,2]
[315982052,1709314235502,-527.93,0.00020547,2]
[315982053,1709314235511,-503.56998405,0.00020547,2]
[315982054,1709314235521,-500.0,0.00020547,2]
[315982055,1709314235530,-500.0,0.00020547,2]
[315982056,1709314235539,-500.0,0.00020547,2]
[315982057,1709314235550,-613.40564706,0.00020547,2]
[315982058,1709314235559,-500.0,0.00020547,2]
[315982059,1709314235569,-500.0,0.00020547,2]
[315982060,1709314235578,-500.0,0.00020547,2]
[315982061,1709314235588,-500.0,0.00020547,2]
[315982062,1709314235598,-500.0,0.00020547,2]
[315982063,1709314235607,-500.0,0.00020547,2]
[315982064,1709314235616,-500.0,0.00020547,2]
[315982065,1709314235627,-178.44318447,0.00020547,2]
[315982066,1709314235636,-403.93103987,0.00020547,2]
[315982067,1709314235646,-500.0,0.00020547,2]
[315982068,1709314235655,-500.0,0.00020547,2]
[315982069,1709314235664,-500.0,0.00020547,2]
[315982070,1709314235674,-500.0,0.00020547,2]
[315982071,1709314235683,-500.0,0.00020547,2]
[315982072,1709314235693,-500.90868185,0.00020547,2]
[315982073,1709314235703,-500.0,0.00020547,2]
[315982074,1709314235713,-533.82979316,0.00020547,2]
[315982075,1709314235723,-500.0,0.00020547,2]
[315982076,1709314235733,-500.0,0.00020547,2]
[315982077,1709314235743,-500.0,0.00020547,2]
[315982078,1709314235754,-500.0,0.00020547,2]
[315982079,1709314235765,-500.0,0.00020547,2]
[315982080,1709314235780,-500.0,0.00020547,2]
[315982081,1709314235792,-500.0,0.00020547,2]
[315982082,1709314235802,-500.0,0.00020547,2]
[315982083,1709314235812,-500.0,0.00020547,2]
[315982084,1709314235823,-500.0,0.00020547,2]
[315982085,1709314235833,-500.0,0.00020547,2]
[315982086,1709314235843,-630.18,0.00020547,2]
[315982087,1709314235853,-500.0,0.00020547,2]
[315982088,1709314235864,-500.0,0.00020547,2]
[315982089,1709314235874,-500.0,0.00020547,2]
[315982090,1709314235885,-500.0,0.00020547,2]
[315982091,1709314235894,-504.22042674,0.00020547,2]
[315982092,1709314235904,-500.22931744,0.00020547,2]
[315982093,1709314235914,-500.0,0.00020547,2]
[315982094,1709314235924,-500.0,0.00020547,2]
[315982095,1709314235933,-500.0,0.00020547,2]
[315982096,1709314235943,-500.0,0.00020547,2]
[315982097,1709314235953,-500.0,0.00020547,2]
[315982098,1709314235963,-500.0,0.00020547,2]
[315982099,1709314235973,-500.0,0.00020547,2]
[315982100,1709314235983,-500.0,0.00020547,2]
[315982101,1709314235993,-500.0,0.00020547,2]
[315982102,1709314236003,-500.0,0.00020547,2]
[315982103,1709314236013,-500.0,0.00020547,2]
[315982104,1709314236023,-500.0,0.00020547,2]
[315982105,1709314236034,-500.0,0.00020547,2]
[315982106,1709314236044,-500.0,0.00020547,2]
[315982107,1709314236054,-613.95857037,0.00020547,2]
[315982108,1709314236063,-500.0,0.00020547,2]
[315982109,1709314236073,-500.0,0.00020547,2]
[315982110,1709314236083,-500.0,0.00020547,2]
[315982111,1709314236092,-500.0,0.00020547,2]
[315982112,1709314236101,-502.15505867,0.00020547,2]
[315982113,1709314236111,-500.0,0.00020547,2]
[315982114,1709314236121,-500.0,0.00020547,2]
[315982115,1709314236132,-500.99049779,0.00020547,2]
[315982116,1709314236141,-1796.74,0.00020547,2]
[315982117,1709314236150,-1796.74,0.00020547,2]
[315982118,1709314236160,-1796.74,0.00020547,2]
[315982119,1709314236170,-1796.74,0.00020547,2]
[315982120,1709314236179,-1796.74,0.00020547,2]
[315982121,1709314236189,-1796.74,0.00020547,2]
[315982122,1709314236199,-1796.74,0.00020547,2]
[315982123,1709314236208,-1796.74,0.00020547,2]
[315982124,1709314236217,-1796.74,0.00020547,2]
[315982125,1709314236227,-1796.74,0.00020547,2]
[315982126,1709314236236,-1796.74,0.00020547,2]
[315982127,1709314236246,-1796.74,0.00020547,2]
[315982128,1709314236256,-1796.74,0.00020547,2]
[315982129,1709314236266,-1796.74,0.00020547,2]
[315982130,1709314236276,-1796.74,0.00020547,2]
[315982131,1709314236285,-1796.74,0.00020547,2]
[315982132,1709314236295,-500.0,0.00020547,2]
[315982133,1709314236304,-500.0,0.00020547,2]
[315982134,1709314236314,-500.0,0.00020547,2]
[315982135,1709314236323,-507.460159,0.00020547,2]
[315982136,1709314236333,-504.03604102,0.00020547,2]
[315982137,1709314236343,-500.0,0.00020547,2]
[315982138,1709314236354,-690.99,0.00020547,2]
[315982139,1709314236365,-690.99,0.00020547,2]
[315982140,1709314236376,-690.99,0.00020547,2]
[315982141,1709314236386,-690.99,0.00020547,2]
[315982142,1709314236396,-690.99,0.00020547,2]
[315982143,1709314236406,-690.99,0.00020547,2]
[315982144,1709314236416,-690.99,0.00020547,2]
[315982145,1709314236425,-690.99,0.00020547,2]
[315982146,1709314236435,-690.99,0.00020547,2]
[315982147,1709314236445,-690.99,0.00020547,2]
[315982148,1709314236454,-690.99,0.00020547,2]
[315982149,1709314236464,-690.99,0.00020547,2]
[315982150,1709314236474,-690.99,0.00020547,2]
[315982151,1709314236484,-690.99,0.00020547,2]
[315982152,1709314236494,-690.99,0.00020547,2]
[315982153,1709314236504,-690.99,0.00020547,2]
[315982154,1709314236514,-500.0,0.00020547,2]
[315982155,1709314236524,-327.4032463,0.00020547,2]
[315982156,1709314236534,-500.0,0.00020547,2]
[315982157,1709314236544,-496.23556867,0.00020547,2]
[315982158,1709314236554,-500.97361617,0.00020547,2]
[315982159,1709314236565,-500.0,0.00020547,2]
[315982160,1709314236575,-500.0,0.00020547,2]
[315982161,1709314236585,-500.0,0.00020547,2]
[315982162,1709314236594,-500.0,0.00020547,2]
[315982163,1709314236604,-500.0,0.00020547,2]
[315982164,1709314236614,-500.0,0.00020547,2]
[315982165,1709314236624,-500.0,0.00020547,2]
[315982166,1709314236633,-500.0,0.00020547,2]
[315982167,1709314236642,-500.0,0.00020547,2]
[315982168,1709314236652,-500.0,0.00020547,2]
[315982169,1709314236662,-500.0,0.00020547,2]
[315982170,1709314236672,-500.0,0.00020547,2]
[315982171,1709314236681,-500.0,0.00020547,2]
[315982172,1709314236690,-500.0,0.00020547,2]
[315982173,1709314236699,-500.40287248,0.00020547,2]
[315982174,1709314236708,-500.0,0.00020547,2]
[315982175,1709314236717,-200.32914559,0.00020547,2]
[315982176,1709314236726,-500.0,0.00020547,2]
[315982177,1709314236737,-500.0,0.00020547,2]
[315982178,1709314236746,-500.0,0.00020547,2]
[315982179,1709314236755,-555.30440015,0.00020547,2]
[315982180,1709314236765,-501.04679274,0.00020547,2]
[315982181,1709314236774,-500.0,0.00020547,2]
[315982182,1709314236786,-500.95648843,0.00020547,2]
[315982183,1709314236795,-500.0,0.00020547,2]
[315982184,1709314236804,-500.0,0.00020547,2]
[315982185,1709314236814,-500.0,0.00020547,2]
[315982186,1709314236824,-500.0,0.00020547,2]
[315982187,1709314236833,-500.0,0.00020547,2]
[315982188,1709314236843,-500.0,0.00020547,2]
[315982189,1709314236928,-500.0,0.00020547,2]
[315982190,1709314236937,-500.0,0.00020547,2]
[315982191,1709314236946,-395.53381871,0.00020547,2]
[315982192,1709314236955,-500.0,0.00020547,2]
[315982193,1709314236964,-500.0,0.00020547,2]
[315982194,1709314236973,-500.0,0.00020547,2]
[315982195,1709314236982,-500.97917017,0.00020547,2]
[315982196,1709314236991,-500.0,0.00020547,2]
[315982197,1709314237000,-500.0,0.00020547,2]
[315982198,1709314237009,-500.0,0.00020547,2]
[315982199,1709314237018,-500.0,0.00020547,2]
[315982200,1709314237027,-593.06453736,0.00020547,2]
[315982201,1709314237035,-500.0,0.00020547,2]
[315982202,1709314237044,-500.0,0.00020547,2]
[315982203,1709314237055,-500.0,0.00020547,2]
[315982204,1709314237063,-500.0,0.00020547,2]
[315982205,1709314237072,-500.0,0.00020547,2]
[315982206,1709314237081,-500.0,0.00020547,2]
[315982207,1709314237090,-500.0,0.00020547,2]
[315982208,1709314237099,-500.0,0.00020547,2]
[315982209,1709314237108,-500.0,0.00020547,2]
[315982210,1709314237116,-500.0,0.00020547,2]
[315982211,1709314237126,-500.0,0.00020547,2]
[315982212,1709314237135,-500.0,0.00020547,2]
[315982213,1709314237144,-500.0,0.00020547,2]
[315982214,1709314237153,-500.0,0.00020547,2]
[315982215,1709314237162,-500.0,0.00020547,2]
[315982216,1709314237171,-500.0,0.00020547,2]
[315982217,1709314237180,-500.0,0.00020547,2]
[315982218,1709314237188,-500.0,0.00020547,2]
[315982219,1709314237197,-500.0,0.00020547,2]
[315982220,1709314237206,-500.0,0.00020547,2]
[315982221,1709314237215,-500.0,0.00020547,2]
[315982222,1709314237226,-518.75420416,0.00020547,2]
[315982223,1709314237236,-311.35947859,0.00020547,2]
[315982224,1709314237245,-500.0,0.00020547,2]
[315982225,1709314237256,-500.0,0.00020547,2]